bitfinex/quotes_SOLUSD_20250908
["timestamp","ask_amount","ask_price","bid_price","bid_amount"]
[1757338570972,9.17845529,214.51,214.5,37.34]
[1757338571574,4.6614983,214.53,214.5,37.34]
[1757338571770,4.51666797,214.51,214.5,37.34]
[1757338572672,4.51666797,214.51,214.46,0.1]
[1757338572981,4.51666797,214.51,214.47,38.07]
[1757338573281,4.51666797,214.5,214.47,37.36]
[1757338573778,4.51666797,214.48,214.46,0.1]
[1757338574085,4.51666797,214.47,214.46,37.46]
[1757338574375,5.21666797,214.47,214.46,0.1]
[1757338574578,22.27713321,214.47,214.46,0.1]
[1757338574963,22.77513617,214.46,214.45,0.03]
[1757338575281,26.2400074,214.46,214.45,0.03]
[1757338575477,26.9400074,214.46,214.45,0.03]
[1757338575862,26.93691291,214.46,214.45,0.03]
[1757338577264,26.93691291,214.46,214.42,0.03]
[1757338577265,39.59559401,214.43,214.42,0.03]
[1757338577566,47.57403872,214.43,214.42,0.03]
[1757338577770,48.27403872,214.43,214.42,0.03]
[1757338579058,4.66374405,214.42,214.41,1e-08]
[1757338579258,8.12552079,214.42,214.41,1e-08]
[1757338579480,13.34218876,214.42,214.41,1e-08]
[1757338579679,26.0,214.38,214.24,0.71]
[1757338579881,4.51666797,214.31,214.26,0.71]
[1757338580066,4.51666797,214.32,214.26,0.71]
[1757338580272,14.29559401,214.37,214.27,0.71]
[1757338580472,4.51666797,214.34,214.27,0.71]
[1757338580980,4.51666797,214.33,214.27,5.37688282]
[1757338581180,4.51666797,214.33,214.28,0.71]
[1757338581478,4.66504944,214.36,214.29,0.71]
[1757338581689,4.51666797,214.33,214.29,0.71]
[1757338581873,4.66504944,214.36,214.3,0.71]
[1757338582184,4.51666797,214.33,214.3,0.71]
[1757338582363,4.51666797,214.34,214.3,0.71]
[1757338582572,4.51666797,214.35,214.31,0.71]
[1757338582793,4.51666797,214.37,214.32,4.66592011]
[1757338582967,4.51666797,214.38,214.33,0.71]
[1757338583164,4.51666797,214.37,214.33,0.66094581]
[1757338583368,4.51666797,214.36,214.3,68.02616929]
[1757338584091,4.51666797,214.33,214.3,37.36]
[1757338584583,0.7,214.36,214.3,37.36]
[1757338584788,4.51666797,214.33,214.3,37.36]
[1757338584970,4.51666797,214.34,214.3,37.36]
[1757338585166,0.7,214.4,214.31,0.71]
[1757338585389,14.29559401,214.43,214.31,0.71]
[1757338585590,4.51666797,214.38,214.31,0.71]
[1757338585993,4.51666797,214.4,214.31,0.71]
[1757338586372,4.51666797,214.42,214.33,26.0]
[1757338586590,0.06,214.44,214.34,0.71]
[1757338586897,0.06,214.44,214.35,16.32843479]
[1757338587104,4.51666797,214.43,214.36,0.71]
[1757338587274,4.51666797,214.43,214.37,37.38]
[1757338587789,4.51666797,214.43,214.38,0.71]
[1757338588096,4.51666797,214.4,214.37,37.38]
[1757338588304,4.51666797,214.38,214.36,37.38]
[1757338588790,4.51666797,214.37,214.35,37.38]
[1757338588972,4.51666797,214.38,214.35,37.38]
[1757338589478,4.51666797,214.37,214.35,37.38]
[1757338589686,0.76,214.44,214.36,0.71]
[1757338589890,5.42335409,214.44,214.36,0.71]
[1757338590094,4.57666797,214.44,214.36,0.71]
[1757338590290,10.69381072,214.44,214.36,0.71]
[1757338590597,10.63381072,214.43,214.36,0.71]
[1757338590969,10.69381072,214.44,214.37,16.32691141]
[1757338591196,10.69381072,214.44,214.38,0.71]
[1757338591197,0.06,214.44,214.38,0.71]
[1757338591408,0.06,214.44,214.4,26.0]
[1757338591700,0.06,214.44,214.41,38.07]
[1757338591873,10.69381072,214.44,214.42,37.36]
[1757338592201,11.33381072,214.43,214.36,4.6650227]
[1757338592370,0.7,214.42,214.4,37.36]
[1757338592575,0.7,214.41,214.4,37.36]
[1757338592769,0.7,214.41,214.38,37.36]
[1757338592994,4.66376299,214.42,214.38,37.36]
[1757338593182,4.72337058,214.44,214.39,0.71]
[1757338593381,0.76,214.44,214.38,42.02460424]
[1757338593585,0.76,214.44,214.38,42.73460424]
[1757338593586,0.06,214.44,214.38,42.73460424]
[1757338593791,0.06,214.44,214.39,0.71]
[1757338593973,0.06,214.44,214.4,0.71]
[1757338594177,0.06,214.44,214.41,0.71]
[1757338594791,0.06,214.44,214.42,0.71]
[1757338594992,0.06,214.44,214.43,4.66352655]
[1757338595291,0.06,214.44,214.43,5.37352655]
[1757338597390,0.06,214.44,214.43,42.02352655]
[1757338597601,0.06,214.44,214.43,42.69352655]
[1757338598673,0.06,214.44,214.43,31.33352655]
[1757338598878,0.06,214.44,214.43,42.69352655]
[1757338600394,0.06,214.44,214.43,30.66352655]
[1757338600582,0.06,214.44,214.43,68.02352655]
[1757338600815,0.06,214.44,214.43,37.36]
[1757338601100,0.06,214.44,214.43,42.69352655]
[1757338602896,0.06,214.44,214.43,31.33352655]
[1757338603096,0.06,214.44,214.43,4.66352655]
[1757338603403,0.06,214.44,214.42,4.693718]
[1757338603613,0.06,214.44,214.43,37.36]
[1757338605003,0.06,214.44,214.42,0.03]
[1757338605201,0.06,214.44,214.43,37.34]
[1757338605885,0.06,214.44,214.42,0.03]
[1757338606088,0.06,214.44,214.43,37.34]
[1757338608586,0.06,214.44,214.43,42.00352655]
[1757338608792,0.06,214.44,214.43,42.67352655]
[1757338610608,0.06,214.44,214.42,0.03]
[1757338610905,0.06,214.44,214.43,37.34]
[1757338611284,0.06,214.44,214.43,38.01]
[1757338611885,0.06,214.44,214.43,37.34]
[1757338612613,0.06,214.44,214.43,42.00352655]
[1757338612997,0.06,214.44,214.43,37.34]
[1757338614013,0.06,214.44,214.43,42.00352655]
[1757338614191,0.06,214.44,214.43,42.67352655]
[1757338614891,0.06,214.44,214.43,42.00352655]
[1757338615611,0.06,214.44,214.43,37.34]
[1757338615816,0.06,214.44,214.42,26.03]
[1757338616121,0.72,214.43,214.42,26.03]
[1757338616312,0.72,214.43,214.42,63.37]
[1757338616610,0.72,214.43,214.42,0.03]
[1757338616815,16.01058588,214.43,214.42,34.67]
[1757338617407,5.38352655,214.43,214.42,34.67]
[1757338618415,16.01058588,214.43,214.42,0.03]
[1757338618796,29.60617989,214.43,214.42,0.03]
[1757338621230,29.60617989,214.43,214.39,0.03]
[1757338621231,39.59559401,214.4,214.39,0.03]
[1757338621400,10.62705933,214.32,214.23,0.67]
[1757338621702,0.72,214.32,214.24,0.97]
[1757338621899,0.72,214.32,214.25,0.67]
[1757338622218,5.38604102,214.32,214.25,0.67]
[1757338622698,0.72,214.35,214.27,26.0]
[1757338622901,0.72,214.35,214.31,26.0]
[1757338623101,11.34705933,214.35,214.32,37.34]
[1757338623322,11.34705933,214.34,214.32,37.34]
[1757338623524,0.72,214.33,214.32,37.34]
[1757338624228,18.26020824,214.38,214.32,37.34]
[1757338624229,0.72,214.36,214.32,37.34]
[1757338624434,13.59559401,214.38,214.23,11.66970078]
[1757338624624,10.62705933,214.35,214.27,26.0]
[1757338624808,11.34705933,214.35,214.27,26.0]
[1757338625125,10.62705933,214.35,214.31,26.0]
[1757338625332,0.72,214.35,214.32,37.34]
[1757338625904,5.3853097,214.35,214.32,37.34]
[1757338626203,0.72,214.34,214.32,37.34]
[1757338626614,0.72,214.39,214.35,26.0]
[1757338626801,13.99808693,214.42,214.32,37.34]
[1757338626802,18.66185498,214.42,214.36,37.34]
[1757338627024,19.38185498,214.42,214.37,37.34]
[1757338627230,5.38376805,214.42,214.37,37.34]
[1757338627533,11.85492072,214.44,214.37,38.01]
[1757338627704,4.7233135,214.44,214.4,26.0]
[1757338628045,0.06,214.44,214.43,26.0]
[1757338628200,0.06,214.44,214.43,64.01]
[1757338628633,0.06,214.44,214.43,38.01]
[1757338629712,0.06,214.44,214.43,42.67352655]
[1757338632233,0.06,214.44,214.43,5.33352655]
[1757338632532,0.06,214.44,214.43,63.32]
[1757338632833,0.06,214.44,214.43,37.32]
[1757338634521,0.06,214.44,214.43,37.99]
[1757338634727,0.06,214.44,214.43,37.32]
[1757338635938,0.78,214.44,214.37,7.19951115]
[1757338636120,0.72,214.43,214.38,37.32]
[1757338636321,0.72,214.42,214.37,1.86484534]
[1757338636527,0.72,214.41,214.38,37.32]
[1757338636727,0.72,214.4,214.38,37.32]
[1757338636926,0.72,214.39,214.38,37.32]
[1757338637330,0.72,214.39,214.37,1.86484534]
[1757338637532,7.13160722,214.41,214.38,37.32]
[1757338637924,16.32462686,214.4,214.39,37.32]
[1757338638126,17.04462686,214.4,214.39,37.32]
[1757338639118,4.72330986,214.44,214.39,37.32]
[1757338639327,4.72337801,214.44,214.42,26.0]
[1757338639649,0.06,214.44,214.43,37.32]
[1757338639839,0.06,214.44,214.43,37.99]
[1757338640142,0.06,214.44,214.43,42.65352655]
[1757338642562,0.06,214.49,214.46,26.0]
[1757338642857,0.06,214.49,214.46,63.3]
[1757338643544,0.06,214.49,214.46,68.63287419]
[1757338644424,0.06,214.49,214.46,72.61381615]
[1757338645662,0.78,214.47,214.4,0.67]
[1757338645859,0.06,214.47,214.44,26.0]
[1757338646052,0.06,214.47,214.45,37.3]
[1757338646356,0.06,214.47,214.45,37.97]
[1757338646557,0.06,214.49,214.48,26.0]
[1757338647146,0.06,214.49,214.48,37.3]
[1757338647674,0.06,214.49,214.48,42.63243938]
[1757338648044,0.72,214.59,214.51,26.0]
[1757338648261,0.72,214.59,214.55,26.0]
[1757338648463,0.72,214.58,214.55,26.0]
[1757338648703,0.72,214.57,214.5,0.67]
[1757338648846,0.72,214.57,214.54,26.0]
[1757338649045,0.72,214.56,214.54,26.0]
[1757338649250,13.59559401,214.6,214.55,37.3]
[1757338649568,4.66070096,214.56,214.49,26.0]
[1757338649872,0.72,214.55,214.53,26.0]
[1757338650050,16.31245338,214.56,214.54,37.3]
[1757338650249,16.31245338,214.56,214.53,26.0]
[1757338650552,16.31245338,214.56,214.54,37.3]
[1757338650748,0.72,214.55,214.54,37.3]
[1757338651140,0.72,214.55,214.54,37.28]
[1757338651340,7.85160722,214.55,214.54,37.28]
[1757338651564,7.85160722,214.55,214.52,26.0]
[1757338651565,4.66113545,214.54,214.52,26.0]
[1757338651758,16.31397408,214.54,214.53,37.28]
[1757338652265,17.03397408,214.54,214.53,37.28]
[1757338652973,4.66094761,214.55,214.53,37.28]
[1757338653161,11.64963055,214.6,214.56,26.0]
[1757338653462,4.65961511,214.61,214.59,26.0]
[1757338653659,5.37961511,214.61,214.6,37.28]
[1757338653862,4.65961511,214.61,214.6,37.28]
[1757338654277,16.30865289,214.61,214.55,26.0]
[1757338654462,17.02865289,214.61,214.59,26.0]
[1757338654651,17.02865289,214.61,214.6,37.28]
[1757338655253,17.02865289,214.61,214.55,26.0]
[1757338655578,5.37983224,214.6,214.59,26.0]
[1757338655762,24.14102007,214.6,214.59,37.28]
[1757338656467,24.14102007,214.6,214.5,26.0]
[1757338656658,24.14102007,214.6,214.48,0.71]
[1757338656659,7.13160722,214.55,214.48,0.71]
[1757338656854,7.83160722,214.55,214.48,26.71]
[1757338657179,7.13160722,214.53,214.44,0.71]
[1757338657381,7.13160722,214.52,214.44,0.71]
[1757338657548,4.66178732,214.51,214.45,16.38]
[1757338657750,16.31625564,214.51,214.44,0.71]
[1757338658168,16.31625564,214.51,214.45,37.28]
[1757338658480,7.13160722,214.47,214.39,0.71]
[1757338658776,7.13160722,214.47,214.38,33.56]
[1757338658777,0.7,214.46,214.38,33.56]
[1757338659079,7.13160722,214.42,214.41,26.0]
[1757338659248,7.83160722,214.42,214.39,37.28]
[1757338659449,7.13160722,214.4,214.38,33.56]
[1757338659649,12.49600388,214.39,214.38,33.56]
[1757338659962,12.49600388,214.39,214.38,70.84]
[1757338660877,12.49600388,214.39,214.37,0.03]
[1757338661065,20.72720123,214.38,214.37,0.03]
[1757338661456,0.7,214.38,214.37,0.03]
[1757338661656,12.49622145,214.38,214.37,0.03]
[1757338662464,26.09181546,214.38,214.37,0.03]
[1757338663164,18.96020824,214.38,214.37,0.03]
[1757338663368,26.09181546,214.38,214.37,0.03]
[1757338664064,12.49622145,214.38,214.37,0.03]
[1757338664269,4.66461423,214.38,214.37,0.03]
[1757338664572,11.79622145,214.38,214.37,0.03]
[1757338665282,11.79599959,214.4,214.37,0.03]
[1757338665588,7.13160722,214.39,214.37,0.03]
[1757338665753,0.7,214.41,214.37,0.03]
[1757338665949,18.95890309,214.44,214.39,26.0]
[1757338666149,0.7,214.43,214.39,26.0]
[1757338666353,18.25890309,214.44,214.39,26.0]
[1757338666354,7.13160722,214.41,214.39,26.0]
[1757338666978,7.13160722,214.43,214.39,26.71]
[1757338667292,11.7949163,214.44,214.39,26.0]
[1757338667978,7.13160722,214.43,214.39,26.0]
[1757338668281,7.13160722,214.42,214.4,37.28]
[1757338668477,7.83160722,214.43,214.4,37.28]
[1757338668866,7.83160722,214.42,214.37,0.03]
[1757338669173,7.13160722,214.39,214.38,37.28]
[1757338669851,11.79600388,214.39,214.38,37.28]
[1757338670057,4.66417843,214.41,214.38,37.28]
[1757338670764,4.66352655,214.43,214.38,37.99]
[1757338670967,12.49513377,214.43,214.38,37.28]
[1757338671161,7.13160722,214.41,214.37,0.03]
[1757338671363,7.13160722,214.41,214.38,37.28]
[1757338671578,16.32234294,214.43,214.38,37.28]
[1757338671781,4.66352655,214.43,214.38,37.99]
[1757338672089,7.13160722,214.43,214.38,37.99]
[1757338672380,7.83160722,214.43,214.38,37.28]
[1757338672573,7.13160722,214.42,214.38,37.28]
[1757338672978,0.7,214.42,214.38,37.28]
[1757338673178,7.83160722,214.42,214.38,37.28]
[1757338673958,7.13160722,214.4,214.38,37.28]
[1757338674278,7.13160722,214.41,214.38,37.28]
[1757338674781,7.83160722,214.41,214.38,37.28]
[1757338674958,7.13160722,214.41,214.38,37.28]
[1757338675276,7.13160722,214.39,214.37,0.03]
[1757338675581,0.7,214.4,214.38,37.28]
[1757338675582,7.13160722,214.4,214.38,37.28]
[1757338675881,7.13160722,214.39,214.38,37.28]
[1757338676669,12.49600388,214.39,214.38,37.28]
[1757338676867,11.79600388,214.39,214.38,37.28]
[1757338677071,4.66439666,214.39,214.38,37.28]
[1757338677272,11.79600388,214.39,214.38,37.28]
[1757338677584,4.66439666,214.39,214.38,37.28]
[1757338679080,12.49600388,214.39,214.38,37.28]
[1757338679778,12.49600388,214.39,214.37,0.03]
[1757338679988,20.72720123,214.38,214.37,0.03]
[1757338680361,4.66439666,214.39,214.37,0.03]
[1757338680870,5.36439666,214.39,214.37,0.03]
[1757338681282,7.83160722,214.38,214.37,0.03]
[1757338681781,7.83160722,214.38,214.37,25.93]
[1757338682659,12.49622145,214.38,214.37,37.31]
[1757338684395,13.59559401,214.37,214.34,0.03]
[1757338684595,7.13160722,214.35,214.34,0.03]
[1757338684899,13.59559401,214.34,214.27,0.03]
[1757338685075,14.29559401,214.34,214.27,0.03]
[1757338685395,7.13160722,214.31,214.27,0.03]
[1757338685560,7.13160722,214.31,214.28,37.28]
[1757338685760,14.29559401,214.34,214.28,37.28]
[1757338685993,7.13160722,214.32,214.28,37.28]
[1757338686223,4.66592011,214.32,214.28,37.28]
[1757338686480,5.35592011,214.32,214.28,37.28]
[1757338686683,12.48752733,214.32,214.28,37.28]
[1757338686889,7.82160722,214.31,214.29,37.28]
[1757338687090,7.13160722,214.31,214.29,37.28]
[1757338687593,7.13160722,214.3,214.29,37.28]
[1757338687791,7.82160722,214.3,214.29,37.28]
[1757338688169,7.13160722,214.31,214.29,37.28]
[1757338688375,4.66635557,214.3,214.29,37.28]
[1757338689185,27.66994219,214.3,214.27,0.03]
[1757338689363,27.66994219,214.3,214.29,37.28]
[1757338689560,17.02224451,214.3,214.29,37.28]
[1757338689775,27.66994219,214.3,214.29,37.28]
[1757338690884,27.66994219,214.3,214.27,0.03]
[1757338690885,41.2655362,214.3,214.27,0.03]
[1757338691088,0.69,214.29,214.28,37.28]
[1757338691389,11.33769768,214.29,214.27,0.03]
[1757338691582,11.33769768,214.28,214.27,37.31]
[1757338691785,11.33769768,214.28,214.27,0.03]
[1757338691976,24.93329169,214.28,214.27,0.03]
[1757338692284,16.33224451,214.3,214.27,0.03]
[1757338692478,0.69,214.28,214.27,0.03]
[1757338692680,16.00448879,214.28,214.27,0.03]
[1757338697667,29.6000828,214.28,214.27,0.03]
[1757338698088,18.95238512,214.28,214.27,0.03]
[1757338698284,29.6000828,214.28,214.27,0.03]
[1757338698600,18.26238512,214.28,214.27,0.03]
[1757338698885,28.9100828,214.28,214.27,0.03]
[1757338699182,4.66679111,214.28,214.27,0.03]
[1757338699389,15.31448879,214.28,214.27,0.03]
[1757338699579,16.00448879,214.28,214.27,0.03]
[1757338700587,4.66679111,214.28,214.27,0.03]
[1757338700777,16.00448879,214.28,214.27,0.03]
[1757338701290,29.6000828,214.28,214.27,0.03]
[1757338701494,33.04895753,214.28,214.27,0.03]
[1757338701690,18.76336352,214.28,214.27,0.03]
[1757338701883,4.66679111,214.28,214.27,0.03]
[1757338702080,16.00448879,214.28,214.27,0.03]
[1757338702389,15.31448879,214.28,214.27,0.03]
[1757338703002,18.76577609,214.28,214.27,0.03]
[1757338703175,22.40367242,214.28,214.27,0.03]
[1757338703370,14.00396779,214.32,214.27,0.03]
[1757338703595,26.0,214.34,214.27,0.03]
[1757338703596,10.64769768,214.29,214.27,0.03]
[1757338704093,13.59559401,214.3,214.27,0.03]
[1757338704271,10.64769768,214.28,214.27,0.03]
[1757338705402,15.31448879,214.28,214.27,0.03]
[1757338705698,4.66679111,214.28,214.27,0.03]
[1757338706587,28.9100828,214.28,214.27,0.03]
[1757338706900,13.59559401,214.27,214.24,0.03]
[1757338707095,24.24329169,214.25,214.24,0.03]
[1757338707279,28.91073626,214.25,214.24,0.03]
[1757338707482,29.60073626,214.25,214.24,0.03]
[1757338708300,53.95887288,214.25,214.17,0.1]
[1757338708493,10.64769768,214.18,214.17,0.1]
[1757338708690,53.95887288,214.25,214.17,0.1]
[1757338709018,10.64769768,214.21,214.17,0.78]
[1757338709177,4.66853408,214.2,214.18,0.68]
[1757338709599,4.66853408,214.2,214.17,37.36]
[1757338709883,4.66853408,214.2,214.18,0.68]
[1757338710096,15.31623176,214.2,214.17,37.36]
[1757338710297,10.64769768,214.19,214.17,37.36]
[1757338710579,10.64769768,214.18,214.12,0.68]
[1757338710806,10.64769768,214.17,214.12,0.68]
[1757338710994,10.64769768,214.14,214.09,37.94]
[1757338711180,10.64769768,214.14,214.1,0.68]
[1757338711500,10.64769768,214.14,214.09,37.26]
[1757338711501,4.6694681,214.16,214.12,26.0]
[1757338711687,4.6694681,214.16,214.14,0.03]
[1757338711999,4.6694681,214.16,214.15,37.94]
[1757338712497,4.6694681,214.16,214.15,37.26]
[1757338712998,4.6694681,214.16,214.15,37.94]
[1757338713201,4.6694681,214.16,214.15,37.26]
[1757338713407,10.64769768,214.17,214.15,37.26]
[1757338713910,22.32034282,214.18,214.15,37.26]
[1757338714198,10.64769768,214.17,214.16,37.26]
[1757338714581,12.36264514,214.18,214.16,37.26]
[1757338714582,11.67264514,214.18,214.16,37.26]
[1757338714784,22.32034282,214.18,214.16,37.26]
[1757338715307,4.66962409,214.15,214.14,0.03]
[1757338715512,15.31732177,214.15,214.14,0.03]
[1757338717281,4.66962409,214.15,214.14,0.03]
[1757338717482,15.31732177,214.15,214.14,0.03]
[1757338718083,16.03732177,214.15,214.14,0.03]
[1757338718599,29.63291578,214.15,214.14,0.03]
[1757338719403,16.03732177,214.15,214.14,0.03]
[1757338720698,15.31732177,214.15,214.14,0.03]
[1757338721804,4.66962409,214.15,214.14,0.03]
[1757338722107,16.03732177,214.15,214.14,0.03]
[1757338722409,13.59559401,214.14,214.07,0.1]
[1757338722610,13.59559401,214.12,214.07,0.1]
[1757338722912,10.64769768,214.08,214.07,0.1]
[1757338724290,15.31884865,214.08,214.07,0.1]
[1757338724513,16.03884865,214.08,214.07,0.1]
[1757338724700,15.31884865,214.08,214.07,0.1]
[1757338725402,16.03884865,214.08,214.07,0.1]
[1757338725605,27.71672607,214.08,213.97,0.7]
[1757338725786,10.64769768,214.03,213.98,37.28]
[1757338725987,10.64769768,214.03,213.99,0.7]
[1757338726191,15.32054675,214.01,214.0,37.28]
[1757338726609,15.32054675,214.01,213.97,26.0]
[1757338726906,4.67284907,214.01,213.96,37.28]
[1757338727109,4.67284907,214.01,213.97,0.7]
[1757338727414,10.64769768,214.02,213.98,0.7]
[1757338727614,10.64769768,214.02,213.99,0.7]
[1757338727803,10.64769768,214.0,213.96,26.2]
[1757338728012,10.64769768,213.98,213.96,25.5]
[1757338728213,11.36769768,213.97,213.72,20.0]
[1757338728394,14.31559401,213.96,213.84,0.7]
[1757338728594,10.64769768,213.89,213.84,0.7]
[1757338728913,10.64769768,213.86,213.81,0.7]
[1757338729090,0.72,213.92,213.82,26.12]
[1757338729295,0.72,213.91,213.83,25.42]
[1757338729496,10.64769768,213.88,213.83,25.42]
[1757338729717,0.72,213.91,213.83,26.12]
[1757338729892,10.64769768,213.9,213.83,52.12]
[1757338730213,10.64769768,213.9,213.77,3.99974017]
[1757338730214,4.67661226,213.83,213.77,0.7]
[1757338730412,4.67573759,213.87,213.77,0.7]
[1757338730604,4.67573759,213.87,213.8,26.0]
[1757338730798,15.32343527,213.87,213.81,0.7]
[1757338731109,4.67573759,213.87,213.82,38.58]
[1757338731314,10.64769768,213.88,213.83,0.7]
[1757338731521,10.64769768,213.88,213.84,0.7]
[1757338731706,10.64769768,213.87,213.82,26.0]
[1757338731910,0.72,213.91,213.86,26.0]
[1757338731911,4.67506269,213.91,213.86,26.0]
[1757338732108,10.64769768,213.88,213.86,26.0]
[1757338732298,4.67595623,213.86,213.79,0.7]
[1757338732596,10.64769768,213.82,213.79,0.7]
[1757338732929,10.64769768,213.8,213.74,0.7]
[1757338733223,10.64769768,213.75,213.71,0.7]
[1757338733521,10.64769768,213.73,213.63,4.68099049]
[1757338733694,0.72,213.79,213.67,26.0]
[1757338733893,13.59559401,213.85,213.68,0.7]
[1757338734094,10.64769768,213.76,213.68,0.7]
[1757338734310,15.32600347,213.76,213.72,26.0]
[1757338734493,15.32600347,213.76,213.73,38.62]
[1757338734695,15.32600347,213.76,213.7,0.7]
[1757338734895,10.64769768,213.75,213.71,26.0]
[1757338735329,10.64769768,213.73,213.71,64.6]
[1757338735628,10.64769768,213.73,213.67,0.7]
[1757338735801,10.64769768,213.71,213.67,0.7]
[1757338736108,4.67830579,213.76,213.68,38.58]
[1757338736308,16.37503508,213.74,213.64,38.6]
[1757338736520,10.64769768,213.72,213.65,0.7]
[1757338736700,16.37503508,213.74,213.65,0.7]
[1757338736903,4.67858145,213.74,213.66,38.6]
[1757338737124,0.72,213.78,213.67,39.32]
[1757338737314,0.72,213.77,213.67,0.7]
[1757338737511,0.72,213.77,213.68,38.62]
[1757338737818,10.64769768,213.73,213.67,0.7]
[1757338738030,0.72,213.72,213.68,38.62]
[1757338738322,4.67985459,213.69,213.62,0.7]
[1757338738701,15.32755227,213.69,213.64,26.0]
[1757338738904,4.67985459,213.69,213.62,0.7]
[1757338739212,17.099045,213.69,213.62,38.66]
[1757338739411,10.64769768,213.67,213.62,38.66]
[1757338739614,10.64769768,213.67,213.62,0.7]
[1757338739931,10.64769768,213.67,213.53,16.39113941]
[1757338739932,10.64769768,213.65,213.59,0.7]
[1757338740101,10.64769768,213.65,213.63,26.0]
[1757338740422,0.72,213.68,213.59,0.7]
[1757338740605,0.72,213.68,213.64,38.7]
[1757338740801,0.72,213.68,213.51,13.59559401]
[1757338740802,0.72,213.67,213.51,4.6834363]
[1757338741020,13.59559401,213.65,213.52,0.7]
[1757338741235,13.59559401,213.63,213.53,38.72]
[1757338741416,0.72,213.62,213.52,0.7]
[1757338741625,0.72,213.62,213.53,36.46]
[1757338741804,0.72,213.62,213.54,0.7]
[1757338742120,13.59559401,213.66,213.55,34.58]
[1757338742322,4.68077139,213.64,213.58,26.0]
[1757338742527,0.72,213.65,213.58,26.0]
[1757338742733,4.67967616,213.69,213.58,26.0]
[1757338742908,4.67967616,213.69,213.62,26.0]
[1757338742909,15.32737384,213.69,213.62,26.0]
[1757338743219,10.64769768,213.65,213.62,26.0]
[1757338743411,10.64769768,213.65,213.63,38.8]
[1757338743607,10.64769768,213.66,213.63,38.8]
[1757338744112,10.64769768,213.65,213.64,38.78]
[1757338744302,15.32766139,213.68,213.64,38.78]
[1757338744502,14.04330018,213.7,213.64,43.4607577]
[1757338744720,14.04330018,213.7,213.64,39.48]
[1757338744914,4.67858145,213.74,213.65,0.7]
[1757338745111,10.64769768,213.66,213.61,0.7]
[1757338745318,10.64769768,213.64,213.62,28.64]
[1757338745641,0.69,213.69,213.63,38.8]
[1757338745930,10.64769768,213.64,213.58,26.0]
[1757338746142,10.64769768,213.62,213.59,38.8]
[1757338746509,10.64769768,213.64,213.6,38.82]
[1757338746805,10.64769768,213.64,213.57,31.33226997]
[1757338747020,0.69,213.64,213.56,64.8]
[1757338747332,11.70049327,213.66,213.59,26.0]
[1757338747508,10.64769768,213.67,213.6,0.65]
[1757338747713,10.64769768,213.65,213.54,4.6828913]
[1757338747913,10.64769768,213.62,213.55,0.65]
[1757338748220,10.64769768,213.6,213.54,0.65]
[1757338748424,4.68099049,213.63,213.54,0.15]
[1757338748629,11.70138076,213.65,213.41,20.0]
[1757338748805,0.69,213.62,213.42,39.3]
[1757338749005,7.1805328,213.62,213.49,26.0]
[1757338749331,7.1805328,213.63,213.53,26.0]
[1757338749628,17.06963309,213.68,213.54,26.0]
[1757338749925,23.38929132,213.78,213.58,26.0]
[1757338750135,7.1805328,213.72,213.62,26.0]